bitfinex/quotes_SOLUSD_20240908
["timestamp","ask_amount","ask_price","bid_price","bid_amount"]
[1725784008509,45.94318221,129.61,129.56,40.0]
[1725784008723,20.0,129.62,129.56,40.0]
[1725784008916,74.55815842,129.62,129.56,40.0]
[1725784010031,44.89432405,129.61,129.56,40.0]
[1725784010912,30.174501,129.62,129.56,40.0]
[1725784016122,30.174501,129.62,129.57,12.6628]
[1725784016319,42.28662203,129.65,129.58,45.0]
[1725784016524,20.0,129.64,129.58,45.0]
[1725784017837,10.174501,129.63,129.57,12.6628]
[1725784020127,20.0,129.62,129.57,12.6628]
[1725784021836,20.0,129.62,129.55,6.0166]
[1725784022029,20.0,129.62,129.56,45.0]
[1725784023338,30.174501,129.62,129.56,45.0]
[1725784031352,74.44240346,129.62,129.56,45.0]
[1725784035161,30.174501,129.62,129.56,45.0]
[1725784036047,10.174501,129.61,129.53,12.6628]
[1725784036656,20.0,129.6,129.53,12.6628]
[1725784037351,20.0,129.6,129.54,45.0]
[1725784038945,20.0,129.6,129.54,54.63282596]
[1725784042538,10.174501,129.61,129.54,54.63282596]
[1725784042947,10.174501,129.61,129.54,45.0]
[1725784043152,15.824,129.6,129.54,45.0]
[1725784043363,15.824,129.6,129.53,45.0]
[1725784058876,15.824,129.6,129.54,9.63282596]
[1725784059171,15.824,129.6,129.55,45.0]
[1725784077667,15.824,129.6,129.56,11.17611483]
[1725784077877,15.824,129.6,129.57,45.0]
[1725784078763,15.824,129.6,129.58,1.5431898]
[1725784079279,15.824,129.6,129.57,45.0]
[1725784080885,25.998501,129.6,129.57,45.0]
[1725784081271,15.824,129.6,129.57,45.0]
[1725784088391,15.824,129.6,129.51,6.175]
[1725784088597,15.824,129.6,129.53,9.63282596]
[1725784088898,15.824,129.6,129.54,45.0]
[1725784094079,6.3228,129.59,129.54,45.0]
[1725784094284,6.3228,129.59,129.54,9.63282596]
[1725784094491,6.3228,129.59,129.55,45.0]
[1725784105116,6.3228,129.59,129.56,1.54342031]
[1725784106309,6.3228,129.59,129.55,45.0]
[1725784131924,6.3228,129.59,129.56,9.63282596]
[1725784132125,6.3228,129.59,129.57,45.0]
[1725784134746,15.824,129.6,129.57,45.0]
[1725784136635,15.0693,129.58,129.49,12.6628]
[1725784136944,10.174501,129.57,129.51,9.63282596]
[1725784138217,15.0693,129.58,129.51,9.63282596]
[1725784138538,15.0693,129.58,129.52,45.0]
[1725784139604,15.0693,129.58,129.53,9.63282596]
[1725784139808,15.0693,129.58,129.54,45.0]
[1725784203362,22.5249,129.64,129.57,9.63282596]
[1725784203664,22.5249,129.64,129.59,9.63282596]
[1725784203871,22.5249,129.64,129.6,45.0]
[1725784204675,20.0,129.63,129.6,45.0]
[1725784209869,15.3902,129.62,129.55,9.63282596]
[1725784210077,25.564701,129.62,129.55,9.63282596]
[1725784210255,6.3692,129.61,129.55,9.63282596]
[1725784210455,16.543701,129.61,129.55,9.63282596]
[1725784213268,16.543701,129.61,129.56,45.0]
[1725784224486,6.3692,129.61,129.57,9.63282596]
[1725784224666,42.09701128,129.65,129.59,9.63282596]
[1725784224667,52.27151228,129.65,129.59,9.63282596]
[1725784224869,42.09701128,129.65,129.61,9.63282596]
[1725784225261,42.09701128,129.65,129.62,45.0]
[1725784226580,42.09701128,129.65,129.63,9.63282596]
[1725784226786,13.8659,129.7,129.64,45.0]
[1725784226990,13.8659,129.7,129.65,9.63282596]
[1725784227191,13.8659,129.7,129.66,45.0]
[1725784228271,13.8659,129.7,129.57,8.35589394]
[1725784228588,13.8659,129.7,129.6,9.63282596]
[1725784228791,13.8659,129.7,129.59,0.09]
[1725784229094,16.2304,129.68,129.6,9.63282596]
[1725784229273,20.0,129.67,129.6,9.63282596]
[1725784229761,20.0,129.67,129.61,45.0]
[1725784233689,20.0,129.67,129.6,9.63282596]
[1725784234293,20.0,129.67,129.62,9.63282596]
[1725784234794,20.0,129.67,129.61,9.63282596]
[1725784234994,20.0,129.67,129.62,45.0]
[1725784235495,20.0,129.67,129.61,9.63282596]
[1725784235681,20.0,129.67,129.62,45.0]
[1725784236464,16.2304,129.68,129.62,45.0]
[1725784236668,20.0,129.67,129.62,45.0]
[1725784240499,20.0,129.67,129.63,9.63282596]
[1725784243986,20.0,129.67,129.62,54.63282596]
[1725784244187,6.0617,129.66,129.62,9.63282596]
[1725784244379,6.0617,129.66,129.54,8.35589394]
[1725784244585,6.0617,129.66,129.6,9.63282596]
[1725784245790,6.0617,129.66,129.61,45.0]
[1725784246500,6.0617,129.66,129.62,9.63282596]
[1725784246682,6.0617,129.66,129.63,45.0]
[1725784250915,6.0617,129.66,129.64,9.63282596]
[1725784260713,16.1211,129.65,129.53,12.6628]
[1725784260892,16.1211,129.63,129.5,6.331]
[1725784261090,20.0,129.62,129.55,9.63282596]
[1725784261305,10.17371984,129.61,129.55,9.63282596]
[1725784261698,20.0,129.6,129.55,9.63282596]
[1725784262094,20.0,129.6,129.54,9.63282596]
[1725784262812,20.0,129.62,129.54,9.63282596]
[1725784263311,20.0,129.62,129.55,45.0]
[1725784263511,20.0,129.62,129.54,9.63282596]
[1725784265103,20.0,129.62,129.55,45.0]
[1725784265901,20.0,129.62,129.56,9.63282596]
[1725784266215,20.0,129.62,129.57,45.0]
[1725784269019,20.0,129.62,129.58,9.63282596]
[1725784269195,20.0,129.62,129.59,45.0]
[1725784270007,20.0,129.62,129.58,9.63282596]
[1725784270715,20.0,129.62,129.5,6.331]
[1725784270937,20.0,129.62,129.56,9.63282596]
[1725784271217,20.0,129.62,129.57,45.0]
[1725784272902,20.0,129.62,129.5,6.331]
[1725784273110,20.0,129.62,129.56,9.63282596]
[1725784274519,20.0,129.62,129.58,9.63282596]
[1725784275101,16.1211,129.63,129.58,9.63282596]
[1725784277428,16.1211,129.63,129.57,45.0]
[1725784279127,16.1211,129.63,129.51,20.0]
[1725784279330,16.0938,129.61,129.49,12.6628]
[1725784279513,30.17371984,129.6,129.53,9.63282596]
[1725784280527,6.1935,129.58,129.47,6.3188]
[1725784280834,6.1935,129.58,129.5,9.63282596]
[1725784280835,16.0938,129.56,129.5,9.63282596]
[1725784281035,20.0,129.55,129.5,9.63282596]
[1725784285729,20.0,129.55,129.52,9.63282596]
[1725784286834,20.0,129.55,129.51,45.0]
[1725784289511,16.0938,129.56,129.51,45.0]
[1725784289710,16.0938,129.56,129.52,9.63282596]
[1725784289933,16.0938,129.56,129.53,45.0]
[1725784290431,16.0938,129.56,129.52,9.63282596]
[1725784290639,16.0938,129.56,129.5,9.63282596]
[1725784290811,16.0938,129.56,129.51,45.0]
[1725784292138,16.0938,129.56,129.46,13.5448849]
[1725784292355,16.0938,129.56,129.49,9.63282596]
[1725784293836,16.0938,129.56,129.5,45.0]
[1725784304126,16.0938,129.56,129.51,9.63282596]
[1725784304335,16.0938,129.56,129.52,45.0]
[1725784315161,16.0938,129.56,129.53,9.63282596]
[1725784315334,16.0938,129.56,129.54,45.0]
[1725784322960,6.1935,129.58,129.54,45.0]
[1725784323169,15.9066,129.59,129.55,11.17635691]
[1725784323339,15.9066,129.59,129.56,45.0]
[1725784325160,15.9066,129.59,129.55,9.63282596]
[1725784325161,26.08031984,129.59,129.55,9.63282596]
[1725784325467,26.08031984,129.59,129.5,12.6628]
[1725784325468,26.08031984,129.59,129.53,9.63282596]
[1725784325769,10.17371984,129.58,129.51,9.63282596]
[1725784326069,6.0788,129.57,129.51,9.63282596]
[1725784326262,16.25251984,129.57,129.51,9.63282596]
[1725784327160,16.25251984,129.57,129.52,45.0]
[1725784329449,6.0788,129.57,129.53,9.63282596]
[1725784331249,6.0788,129.57,129.54,45.0]
[1725784331673,6.0788,129.57,129.53,9.63282596]
[1725784332382,6.0788,129.57,129.54,45.0]
[1725784343172,15.9066,129.59,129.54,45.0]
[1725784346977,26.08031984,129.59,129.54,45.0]
[1725784347194,10.17371984,129.58,129.54,45.0]
[1725784350477,15.9066,129.59,129.53,9.63282596]
[1725784355060,15.9066,129.59,129.54,45.0]
[1725784358594,26.08031984,129.59,129.53,9.63282596]
[1725784360794,26.08031984,129.59,129.54,45.0]
[1725784369699,26.08031984,129.59,129.55,9.63282596]
[1725784369872,26.08031984,129.59,129.56,45.0]
[1725784373078,26.08031984,129.59,129.55,9.63282596]
[1725784373277,26.08031984,129.59,129.54,9.63282596]
[1725784373599,26.08031984,129.59,129.55,45.0]
[1725784382576,26.08031984,129.59,129.54,9.63282596]
[1725784382777,6.1996,129.56,129.47,12.6628]
[1725784382995,6.1996,129.56,129.5,9.63282596]
[1725784382996,16.37331984,129.56,129.5,9.63282596]
[1725784383577,16.37331984,129.56,129.47,12.6628]
[1725784383800,16.37331984,129.56,129.5,9.63282596]
[1725784384185,16.37331984,129.56,129.51,45.0]
[1725784385301,16.37331984,129.56,129.52,9.63282596]
[1725784385504,6.1996,129.56,129.52,9.63282596]
[1725784388784,10.17371984,129.55,129.46,0.8820849]
[1725784389002,16.3111,129.54,129.49,9.63282596]
[1725784390296,16.3111,129.54,129.51,9.63282596]
[1725784402492,16.3111,129.57,129.53,9.63282596]
[1725784402699,16.3111,129.57,129.56,9.63282596]
[1725784403919,16.3111,129.57,129.55,9.63282596]
[1725784404801,26.48481984,129.57,129.53,9.63282596]
[1725784408011,16.3111,129.57,129.53,9.63282596]
[1725784416710,16.3111,129.57,129.55,9.63282596]
[1725784420030,26.48481984,129.57,129.54,45.0]
[1725784422452,26.48481984,129.57,129.53,9.63282596]
[1725784422739,16.3111,129.57,129.53,9.63282596]
[1725784423441,16.3111,129.57,129.54,45.0]
[1725784423944,16.3111,129.57,129.55,9.63282596]
[1725784424439,15.7453,129.6,129.56,45.0]
[1725784424747,15.7453,129.6,129.57,9.63282596]
[1725784426944,15.7453,129.6,129.56,45.0]
[1725784427142,25.91901984,129.6,129.56,45.0]
[1725784427330,10.17371984,129.59,129.56,45.0]
[1725784432646,15.7453,129.6,129.56,45.0]
[1725784439025,6.1746,129.62,129.56,45.0]
[1725784439345,20.0,129.61,129.56,45.0]
[1725784441353,30.17371984,129.61,129.56,45.0]
[1725784441643,30.17371984,129.61,129.55,9.63282596]
[1725784444544,30.17371984,129.61,129.56,45.0]
[1725784445736,30.17371984,129.61,129.57,9.63282596]
[1725784445938,20.0,129.61,129.58,45.0]
[1725784449048,15.7236,129.63,129.58,45.0]
[1725784449266,15.7236,129.63,129.59,9.63282596]
[1725784449547,15.7236,129.63,129.6,45.0]
[1725784452954,24.14065497,129.66,129.6,45.0]
[1725784453262,24.14065497,129.66,129.61,9.63282596]
[1725784453443,24.14065497,129.66,129.62,45.0]
[1725784454438,20.0,129.65,129.62,45.0]
[1725784454861,20.0,129.65,129.59,9.63282596]
[1725784455154,30.17371984,129.65,129.6,45.0]
[1725784456757,30.17371984,129.65,129.55,12.6628]
[1725784456929,15.1612,129.63,129.54,6.4577]
[1725784457127,15.1612,129.63,129.52,12.6628]
[1725784457128,30.17371984,129.62,129.52,22.29562596]
[1725784457343,6.0668,129.61,129.52,22.29562596]
[1725784457566,30.17371984,129.6,129.52,22.29562596]
[1725784458157,10.17371984,129.6,129.52,22.29562596]
[1725784458760,10.17371984,129.6,129.53,45.0]
[1725784462880,15.1612,129.59,129.52,45.0]
[1725784463165,25.33491984,129.59,129.52,45.0]
[1725784463974,20.0,129.58,129.52,45.0]
[1725784469782,20.0,129.58,129.53,9.63282596]
[1725784470081,20.0,129.58,129.54,45.0]
[1725784475975,15.1612,129.59,129.54,45.0]
[1725784494297,25.33491984,129.59,129.54,45.0]
[1725784500201,15.1612,129.59,129.55,9.63282596]
[1725784500372,15.1612,129.59,129.56,45.0]
[1725784502599,25.33491984,129.59,129.56,45.0]
[1725784504182,15.1612,129.59,129.56,45.0]
[1725784505291,15.1612,129.59,129.55,45.0]
[1725784505788,15.1612,129.59,129.56,9.63282596]
[1725784505994,15.1612,129.59,129.57,45.0]
[1725784506997,15.1612,129.59,129.56,45.0]
[1725784512086,15.1612,129.59,129.57,9.63282596]
[1725784512302,15.1612,129.59,129.58,45.0]
[1725784518009,15.1612,129.59,129.48,19.1205]
[1725784518223,25.33491984,129.59,129.49,20.0]
[1725784518391,25.33491984,129.59,129.53,9.63282596]
[1725784519820,25.33491984,129.59,129.54,45.0]
[1725784529322,25.33491984,129.59,129.55,9.63282596]
[1725784529500,15.1612,129.59,129.56,45.0]
[1725784532424,15.1612,129.59,129.57,1.54344803]
[1725784534123,15.1612,129.59,129.56,45.0]
[1725784534329,15.8411,129.63,129.57,9.63282596]
[1725784534628,15.8411,129.63,129.59,9.63282596]
[1725784534914,15.8411,129.63,129.6,45.0]
[1725784537605,15.8411,129.63,129.61,9.63282596]
[1725784537818,15.8411,129.63,129.62,45.0]
[1725784540124,15.8411,129.63,129.58,9.63282596]
[1725784540322,15.8411,129.63,129.59,45.0]
[1725784540697,15.8411,129.63,129.58,9.63282596]
[1725784540915,24.99663095,129.63,129.56,9.63282596]
[1725784542318,24.99663095,129.63,129.57,45.0]
[1725784543424,24.99663095,129.63,129.56,45.0]
[1725784544725,15.8411,129.63,129.57,9.63282596]
[1725784545232,15.8411,129.63,129.55,9.63282596]
[1725784545522,15.8411,129.63,129.56,1.54333499]
[1725784545721,15.8411,129.63,129.55,9.63282596]
[1725784546116,15.8411,129.63,129.56,1.54330169]
[1725784546316,15.8411,129.63,129.56,46.54330169]
[1725784546525,15.8411,129.63,129.56,45.0]
[1725784546902,24.99663095,129.63,129.56,45.0]
[1725784564036,24.99663095,129.63,129.57,9.63282596]
[1725784564227,15.8411,129.63,129.58,46.5431145]
[1725784570232,15.8411,129.63,129.59,9.63282596]
[1725784570451,15.8411,129.63,129.6,45.0]
[1725784570736,24.99663095,129.63,129.6,45.0]
[1725784577824,24.99663095,129.63,129.56,9.63282596]
[1725784578025,24.99663095,129.63,129.57,45.0]
[1725784581031,15.8411,129.63,129.6,9.63282596]
[1725784581216,15.8411,129.63,129.61,45.0]
[1725784585258,2.95887794,129.66,129.61,54.63282596]
[1725784585432,16.1924,129.67,129.61,54.63282596]
[1725784585929,25.34793095,129.67,129.61,54.63282596]
[1725784586130,9.15553095,129.66,129.61,45.0]
[1725784586342,9.15553095,129.66,129.6,45.0]
[1725784588153,9.15553095,129.66,129.61,9.63282596]
[1725784588324,9.15553095,129.66,129.62,45.0]
[1725784588858,16.1924,129.67,129.62,46.54271455]
[1725784589757,16.1924,129.67,129.62,45.0]
[1725784590053,25.34793095,129.67,129.62,45.0]
[1725784590437,16.1924,129.67,129.62,45.0]
[1725784591150,25.34793095,129.67,129.62,45.0]
[1725784591451,53.34197563,129.69,129.65,9.63282596]
[1725784591749,7.741,129.71,129.67,9.63282596]
[1725784592049,7.741,129.71,129.68,45.0]
[1725784592427,7.741,129.71,129.69,9.63282596]
[1725784592632,7.741,129.71,129.7,45.0]
[1725784593830,7.741,129.73,129.7,45.0]
[1725784595749,16.2222,129.74,129.71,9.63282596]
[1725784596060,16.2222,129.77,129.72,45.0]
[1725784597137,20.0,129.76,129.72,45.0]
[1725784598842,29.15553095,129.76,129.68,9.63282596]
[1725784599658,29.15553095,129.76,129.69,9.63282596]
[1725784601142,29.15553095,129.76,129.7,45.0]
[1725784601758,20.0,129.76,129.7,45.0]
[1725784603665,20.0,129.76,129.71,9.63282596]
[1725784606654,20.0,129.76,129.72,45.0]
[1725784608168,16.2222,129.77,129.73,9.63282596]
[1725784608371,16.2222,129.77,129.74,45.0]
[1725784610048,16.2222,129.77,129.68,12.6628]
[1725784610373,16.2222,129.77,129.69,9.63282596]
[1725784612969,16.2222,129.77,129.7,45.0]
[1725784614350,16.2222,129.77,129.71,9.63282596]
[1725784614551,310.05024191,129.84,129.71,9.63282596]
[1725784614552,22.1287,129.8,129.75,9.63282596]
[1725784614886,22.1287,129.8,129.76,45.0]
[1725784616271,22.1287,129.8,129.73,9.63282596]
[1725784616571,17.1287,129.8,129.74,45.0]
[1725784619860,17.1287,129.8,129.68,12.6628]
[1725784620069,17.1287,129.8,129.72,9.63282596]
[1725784620254,17.1287,129.8,129.73,45.0]
[1725784620458,17.1287,129.8,129.72,9.63282596]
[1725784621769,17.1287,129.8,129.73,45.0]
[1725784622169,17.1287,129.8,129.74,9.63282596]
[1725784622373,17.1287,129.8,129.75,45.0]
[1725784633064,17.1287,129.8,129.68,12.6628]
[1725784633271,17.1287,129.8,129.73,9.63282596]
[1725784634397,17.1287,129.8,129.74,45.0]
[1725784635767,17.1287,129.8,129.75,9.63282596]
[1725784635973,17.1287,129.8,129.76,45.0]
[1725784639573,17.1287,129.8,129.77,9.63282596]
[1725784639769,15.5832,129.8,129.77,9.63282596]
[1725784640092,15.5832,129.8,129.77,11.17386747]
[1725784642279,15.5832,129.8,129.78,45.0]
[1725784643881,15.5832,129.8,129.79,9.63282596]
[1725784644066,6.0724,129.83,129.79,54.63282596]
[1725784644259,6.0724,129.83,129.8,45.0]
[1725784645562,6.0724,129.83,129.78,9.63282596]
[1725784645763,6.0724,129.83,129.79,45.0]
[1725784646279,6.0724,129.83,129.78,9.63282596]
[1725784648382,6.0724,129.83,129.72,12.6628]
[1725784648882,16.1445,129.82,129.75,9.63282596]
[1725784649773,16.1445,129.82,129.77,9.63282596]
[1725784650710,16.1445,129.82,129.78,45.0]
[1725784651285,16.1445,129.82,129.79,9.63282596]
[1725784651488,16.1445,129.82,129.8,45.0]
[1725784656397,16.1445,129.85,129.8,45.0]
[1725784656877,16.1445,129.85,129.81,9.63282596]
[1725784657074,16.1445,129.85,129.82,46.54040265]
[1725784657271,16.1445,129.85,129.83,9.63282596]
[1725784657477,16.1445,129.85,129.84,45.0]
[1725784659869,274.9,129.94,129.84,45.0]
[1725784659870,16.1445,129.93,129.84,45.0]
[1725784660174,254.9,129.94,129.84,9.63282596]
[1725784660175,22.3361,129.9,129.84,9.63282596]
[1725784660383,22.3361,129.9,129.86,9.63282596]
[1725784660599,22.3361,129.9,129.87,45.0]
[1725784663898,16.1445,129.9,129.87,45.0]
[1725784665197,16.1445,129.9,129.85,9.63282596]
[1725784666798,16.1445,129.9,129.86,45.0]
[1725784669899,16.1445,129.9,129.86,46.5398177]
[1725784670301,16.1445,129.9,129.87,9.63282596]
[1725784670595,16.1445,129.9,129.88,46.53968691]
[1725784670798,16.1445,129.9,129.88,45.0]
[1725784672080,22.781,129.93,129.88,45.0]
[1725784672404,22.781,129.93,129.88,46.53953478]
[1725784673982,271.4894,130.0,129.89,9.63282596]
[1725784674186,276.8743,130.0,129.9,45.0]
[1725784674501,6.54,129.97,129.9,45.0]
[1725784674810,16.5894,129.95,129.9,45.0]
[1725784681002,16.5894,129.95,129.9,54.63282596]
[1725784691314,16.5894,129.95,129.88,9.63282596]
[1725784692192,16.5894,129.95,129.9,9.63282596]
[1725784692393,254.9,130.0,129.85,6.4007]
[1725784692394,16.2013,129.98,129.91,1.53914911]
[1725784692919,16.2013,129.98,129.96,9.63282596]
[1725784693415,16.2013,129.98,129.9,6.4167]
[1725784693618,16.2013,130.02,129.97,9.63282596]
[1725784693791,16.2013,130.02,129.99,9.63282596]
[1725784694197,0.8820849,130.04,129.99,9.63282596]
[1725784694510,0.8820849,130.04,130.0,45.0]
[1725784695112,0.8820849,130.04,129.98,9.63282596]
[1725784695291,0.8820849,130.04,129.99,45.0]
[1725784696211,6.3744,130.03,129.97,9.63282596]
[1725784696415,16.2013,130.02,129.98,45.0]
[1725784698710,16.2013,130.02,129.98,54.63282596]
[1725784700107,16.2013,130.02,129.98,45.0]
[1725784700304,16.2013,130.02,130.0,9.63282596]
[1725784701010,16.2013,130.02,130.01,45.0]
[1725784706309,16.2013,130.02,130.0,9.63282596]
[1725784707311,16.2013,130.02,129.98,9.63282596]
[1725784707627,16.2013,130.02,129.99,45.0]
[1725784710902,16.2013,130.02,130.0,9.63282596]
[1725784711105,0.8820849,130.04,130.01,1.53816801]
[1725784711305,0.8820849,130.04,130.01,45.0]
[1725784711521,0.8820849,130.04,130.0,9.63282596]
[1725784711722,0.8820849,130.04,130.01,45.0]
[1725784712215,0.8820849,130.04,130.0,9.63282596]
[1725784712426,0.8820849,130.04,129.99,9.63282596]
[1725784712601,0.8820849,130.04,130.0,46.53820099]
[1725784714410,0.8820849,130.04,130.0,45.0]
[1725784714609,0.8820849,130.04,130.0,46.53808087]
[1725784717609,0.8820849,130.04,130.0,45.0]
[1725784719407,0.8820849,130.04,129.99,9.63282596]
[1725784724609,0.8820849,130.04,129.93,1.5425208]
[1725784724820,0.8820849,130.04,129.93,74.87191139]
[1725784725011,0.8820849,130.04,129.98,9.63282596]
[1725784725212,0.8820849,130.04,129.99,45.0]
[1725784725614,15.5352,130.03,129.93,8.32939059]
[1725784725831,6.545,130.02,129.96,9.63282596]
[1725784728718,15.5352,130.01,129.96,9.63282596]
[1725784737446,15.5352,130.01,129.94,9.63282596]
[1725784737659,15.5352,130.01,129.95,45.0]
[1725784738564,15.5352,130.01,129.95,46.54283963]
[1725784740622,15.5352,130.01,129.89,14.96479059]
[1725784740826,15.5352,129.97,129.86,6.6354]
[1725784741028,15.5352,129.97,129.87,9.63282596]
[1725784741355,11.9321,129.94,129.87,1.54351112]
[1725784741528,15.5352,129.93,129.87,1.54351112]
[1725784742033,15.5352,129.93,129.86,9.63282596]
[1725784742637,15.5352,129.93,129.88,9.63282596]
[1725784742834,15.5352,129.93,129.89,45.0]
[1725784743230,15.5352,129.93,129.88,9.63282596]
[1725784744628,15.5352,129.93,129.82,6.6354]
[1725784744840,15.5352,129.93,129.85,9.63282596]
[1725784745448,20.9227,129.93,129.85,9.63282596]
[1725784746348,15.5352,129.93,129.85,9.63282596]
[1725784746739,15.5352,129.93,129.86,45.0]
[1725784749039,15.5352,129.93,129.87,9.63282596]
[1725784749251,15.5352,129.93,129.88,46.53962705]
[1725784750037,15.5352,129.93,129.89,9.63282596]
[1725784750354,15.5352,129.93,129.9,46.53940524]
[1725784750744,15.5352,129.93,129.9,45.0]
[1725784762572,15.5352,129.93,129.91,9.63282596]
[1725784763045,16.3861,129.96,129.92,1.53923712]
[1725784763642,16.3861,129.96,129.92,45.0]
[1725784772272,16.3861,129.96,129.87,6.2935]
[1725784772581,16.3861,129.96,129.91,9.63282596]
[1725784774347,16.3861,129.96,129.92,1.53922089]
[1725784774776,16.3861,129.96,129.92,46.53922089]
[1725784775551,16.3861,129.96,129.93,9.63282596]
[1725784775755,16.3861,129.96,129.93,11.17183302]
[1725784778575,16.3861,129.96,129.93,9.63282596]
[1725784778882,15.5981,129.99,129.93,9.63282596]
[1725784779378,15.5981,129.99,129.92,45.0]
[1725784779379,15.5981,129.97,129.87,6.2935]
[1725784779557,6.456,129.95,129.88,9.63282596]
[1725784781764,6.456,129.95,129.89,45.0]
[1725784785184,6.456,129.95,129.88,9.63282596]
[1725784785358,15.5981,129.94,129.88,9.63282596]
[1725784794077,15.5981,129.94,129.86,11.1764022]
[1725784794395,20.9852,129.94,129.86,9.63282596]
[1725784794565,20.9852,129.94,129.87,1.54367976]
[1725784794768,15.5981,129.94,129.87,1.54367976]
[1725784797087,15.9179,129.9,129.84,11.17650572]
[1725784797392,15.9179,129.9,129.84,9.63282596]
[1725784804513,15.9179,129.9,129.86,9.63282596]
[1725784804803,15.9179,129.9,129.88,9.63282596]
[1725784804991,15.9179,129.94,129.88,11.17238204]
[1725784806885,15.9179,129.94,129.88,9.63282596]
[1725784808289,15.9179,129.94,129.9,9.63282596]
[1725784814111,15.9179,129.94,129.88,9.63282596]
[1725784816900,15.9179,129.94,129.89,1.53955436]
[1725784817098,15.9179,129.94,129.88,9.63282596]
[1725784817314,15.9179,129.94,129.89,1.53955394]
[1725784817503,15.9179,129.94,129.88,9.63282596]
[1725784817814,15.9179,129.94,129.89,1.53955359]
[1725784818707,15.9179,129.94,129.88,11.1723104]
[1725784818918,15.9179,129.94,129.88,9.63282596]
[1725784820692,15.9179,129.94,129.81,20.3597]
[1725784820892,15.9179,129.94,129.86,9.63282596]
[1725784823213,15.9179,129.94,129.81,20.3597]
[1725784823521,6.2155,129.92,129.83,9.63282596]
[1725784824020,15.9116,129.91,129.83,9.63282596]
[1725784832817,15.9116,129.91,129.85,9.63282596]
[1725784837433,15.9116,129.91,129.86,46.53980953]
[1725784838421,15.9116,129.91,129.86,45.0]
[1725784841935,15.9116,129.91,129.87,9.63282596]
[1725784842113,15.9116,129.91,129.88,45.0]
[1725784843516,15.9116,129.91,129.89,9.63282596]
[1725784843922,15.1766,129.94,129.9,45.0]
[1725784847768,15.1766,129.94,129.91,9.63282596]
[1725784849140,32.23650762,130.03,129.93,9.63282596]
[1725784849341,16.2665,130.03,129.98,9.63282596]
[1725784849727,16.2665,130.03,129.99,46.53835117]
[1725784850422,16.2665,130.03,130.0,9.63282596]
[1725784850938,16.2665,130.03,129.99,45.0]
[1725784851137,16.2665,130.03,129.99,9.63282596]
[1725784851325,16.2665,130.03,129.98,9.63282596]
[1725784852849,16.2665,130.03,129.99,45.0]
[1725784853347,16.2665,130.03,130.0,9.63282596]
[1725784854637,16.2665,130.03,130.0,11.17112102]
[1725784854942,16.2665,130.03,130.0,9.63282596]
[1725784855752,6.0182,130.05,130.02,9.63282596]
[1725784856652,16.2665,130.06,130.02,9.63282596]
[1725784857044,16.2665,130.06,130.0,9.63282596]
[1725784860539,16.2665,130.06,129.95,14.2056]
[1725784860737,16.2665,130.06,129.96,20.0]
[1725784861055,21.6487,130.06,129.98,9.63282596]
[1725784861436,16.2665,130.06,130.0,9.63282596]
[1725784862836,16.2665,130.06,130.02,9.63282596]
[1725784863834,16.2665,130.06,129.94,26.2908]
[1725784864037,16.2665,130.06,130.01,9.63282596]
[1725784864427,16.2665,130.06,129.95,45.0]
[1725784864672,16.2665,130.06,130.01,9.63282596]
[1725784867050,16.2665,130.06,130.03,9.63282596]
[1725784868634,0.3820849,130.04,130.03,9.63282596]
[1725784870660,0.3820849,130.04,130.02,9.63282596]
[1725784873951,0.3820849,130.04,130.03,45.0]
[1725784876372,15.2723,130.09,130.06,9.63282596]
[1725784876966,15.2723,130.09,130.05,9.63282596]
[1725784877750,15.2723,130.09,130.06,45.0]
[1725784878872,15.2723,130.09,130.07,9.63282596]